[Event "*** SCC Grand Prix: Titled Tuesday Blitz"]
[Site "Chess.com"]
[Date "2020.06.09"]
[Round "5"]
[White "Caracternin123"]
[Black "VincentKeymer"]
[Result "0-1"]
[WhiteElo "2558"]
[BlackElo "2761"]
[TimeControl "180+1"]
[EndTime "9:56:49 PDT"]
[Termination "VincentKeymer won by resignation"]

1. d4 {[%clk 0:03:00.9]} 1... Nf6 {[%clk 0:02:57.8]} 2. Nf3 {[%clk 0:03:00.4]}
2... d5 {[%clk 0:02:57.3]} 3. Bg5 {[%clk 0:02:59.2]} 3... e6 {[%clk 0:02:53.6]}
4. Nbd2 {[%clk 0:02:58.9]} 4... h6 {[%clk 0:02:53]} 5. Bh4 {[%clk 0:02:58.9]}
5... c5 {[%clk 0:02:47.5]} 6. e3 {[%clk 0:02:58.8]} 6... Nc6 {[%clk 0:02:45.4]}
7. c3 {[%clk 0:02:59]} 7... Be7 {[%clk 0:02:44.9]} 8. Bd3 {[%clk 0:02:58.9]}
8... b6 {[%clk 0:02:45.1]} 9. O-O {[%clk 0:02:58.6]} 9... Bb7 {[%clk 0:02:45.2]}
10. Ne5 {[%clk 0:02:56.3]} 10... Nxe5 {[%clk 0:02:36.2]} 11. dxe5 {[%clk
0:02:57.2]} 11... Nd7 {[%clk 0:02:36.6]} 12. Bxe7 {[%clk 0:02:57.5]} 12... Qxe7
{[%clk 0:02:37.5]} 13. f4 {[%clk 0:02:57.7]} 13... O-O {[%clk 0:02:34.9]} 14.
Nf3 {[%clk 0:02:49.1]} 14... Rad8 {[%clk 0:02:29.7]} 15. Qe2 {[%clk 0:02:48.4]}
15... f6 {[%clk 0:02:29]} 16. exf6 {[%clk 0:02:48.7]} 16... Rxf6 {[%clk
0:02:18.5]} 17. Bb5 {[%clk 0:01:50.3]} 17... Nf8 {[%clk 0:02:17.3]} 18. Ne5
{[%clk 0:01:44.2]} 18... Ng6 {[%clk 0:02:12.2]} 19. Nxg6 {[%clk 0:01:43.6]}
19... Rxg6 {[%clk 0:02:11.5]} 20. Bd3 {[%clk 0:01:44.3]} 20... Rf6 {[%clk
0:02:10.9]} 21. e4 {[%clk 0:01:43.2]} 21... d4 {[%clk 0:01:59.8]} 22. e5 {[%clk
0:01:34.3]} 22... Rff8 {[%clk 0:01:58.8]} 23. c4 {[%clk 0:01:34.5]} 23... Qh4
{[%clk 0:01:57]} 24. f5 {[%clk 0:01:06.9]} 24... exf5 {[%clk 0:01:52.3]} 25. e6
{[%clk 0:01:06.3]} 25... Be4 {[%clk 0:01:46.3]} 26. g3 {[%clk 0:00:47.2]} 26...
Bxd3 {[%clk 0:01:29.2]} 27. Qxd3 {[%clk 0:00:46.4]} 27... Qe7 {[%clk 0:01:26.5]}
28. Rae1 {[%clk 0:00:43.2]} 28... Rf6 {[%clk 0:01:21.8]} 29. Rxf5 {[%clk
0:00:42.7]} 29... Rxe6 {[%clk 0:01:21.9]} 30. Ref1 {[%clk 0:00:40.2]} 30... Re1
{[%clk 0:01:19.9]} 31. Rxe1 {[%clk 0:00:36]} 31... Qxe1+ {[%clk 0:01:20.8]} 32.
Kg2 {[%clk 0:00:36.5]} 32... Qe6 {[%clk 0:01:19.2]} 33. h4 {[%clk 0:00:34.1]}
33... Re8 {[%clk 0:01:18.4]} 34. Rf2 {[%clk 0:00:32]} 34... Qc6+ {[%clk
0:01:15.5]} 35. Kh2 {[%clk 0:00:31.7]} 35... Re1 {[%clk 0:01:12.6]} 36. Rf3
{[%clk 0:00:27.5]} 36... Qe6 {[%clk 0:01:10.5]} 37. h5 {[%clk 0:00:23.6]} 37...
Re2+ {[%clk 0:01:06.8]} 38. Kg1 {[%clk 0:00:23.5]} 38... Rxb2 {[%clk 0:01:05.2]}
39. Qf1 {[%clk 0:00:17.3]} 39... Qe7 {[%clk 0:01:00.1]} 40. Qh3 {[%clk
0:00:13.6]} 40... Qe1+ {[%clk 0:00:42.1]} 41. Rf1 {[%clk 0:00:13.7]} 41... Qe3+
{[%clk 0:00:42.2]} 42. Kh1 {[%clk 0:00:14.3]} 42... Rf2 {[%clk 0:00:36.2]} 43.
Rxf2 {[%clk 0:00:07.9]} 43... Qxf2 {[%clk 0:00:36.1]} 44. Qe6+ {[%clk 0:00:08]}
44... Qf7 {[%clk 0:00:35.7]} 45. Qe2 {[%clk 0:00:05.6]} 45... Qd7 {[%clk
0:00:32.6]} 46. g4 {[%clk 0:00:05.4]} 46... d3 {[%clk 0:00:33]} 47. Qd2 {[%clk
0:00:04.5]} 47... Qd4 {[%clk 0:00:33]} 48. g5 {[%clk 0:00:03.9]} 48... Qh4+
{[%clk 0:00:32]} 0-1

[Event "*** SCC Grand Prix: Titled Tuesday Blitz"]
[Site "Chess.com"]
[Date "2020.06.09"]
[Round "5"]
[White "Semen_Khanin"]
[Black "UCantHandleDenker"]
[Result "1-0"]
[WhiteElo "2741"]
[BlackElo "2520"]
[TimeControl "180+1"]
[EndTime "9:56:49 PDT"]
[Termination "Semen_Khanin won on time"]

1. e4 {[%clk 0:02:48.1]} 1... d6 {[%clk 0:02:59.2]} 2. d4 {[%clk 0:02:47.7]}
2... Nf6 {[%clk 0:02:59.1]} 3. Nc3 {[%clk 0:02:47.9]} 3... g6 {[%clk 0:02:59.3]}
4. Nf3 {[%clk 0:02:44.6]} 4... Bg7 {[%clk 0:02:58.7]} 5. Be3 {[%clk 0:02:44.4]}
5... O-O {[%clk 0:02:57.4]} 6. Qd2 {[%clk 0:02:44.7]} 6... c6 {[%clk 0:02:51.3]}
7. Bh6 {[%clk 0:02:44]} 7... b5 {[%clk 0:02:49.5]} 8. Bxg7 {[%clk 0:02:39.6]}
8... Kxg7 {[%clk 0:02:48.9]} 9. Bd3 {[%clk 0:02:40.5]} 9... Nbd7 {[%clk
0:02:46.4]} 10. h4 {[%clk 0:02:33.1]} 10... h5 {[%clk 0:02:40.2]} 11. Ne2 {[%clk
0:02:27.4]} 11... Qc7 {[%clk 0:02:28.4]} 12. Ng3 {[%clk 0:02:27.2]} 12... Rb8
{[%clk 0:01:57.2]} 13. O-O-O {[%clk 0:02:25.6]} 13... c5 {[%clk 0:01:50]} 14. e5
{[%clk 0:02:16.9]} 14... dxe5 {[%clk 0:01:47]} 15. Qg5 {[%clk 0:01:53.8]} 15...
e4 {[%clk 0:00:28.9]} 16. Nf5+ {[%clk 0:01:48.4]} 16... Kg8 {[%clk 0:00:26.6]}
17. Nxe7+ {[%clk 0:01:48.6]} 17... Kg7 {[%clk 0:00:23.2]} 18. Nf5+ {[%clk
0:01:14.6]} 18... Kg8 {[%clk 0:00:22.5]} 19. Ne5 {[%clk 0:01:04.2]} 19... Nxe5
{[%clk 0:00:19.5]} 20. dxe5 {[%clk 0:01:02.6]} 20... Bxf5 {[%clk 0:00:13.6]} 21.
exf6 {[%clk 0:01:01.8]} 21... Kh7 {[%clk 0:00:13.6]} 22. Be2 {[%clk 0:01:00.3]}
22... Qe5 {[%clk 0:00:13.2]} 23. g4 {[%clk 0:00:55.6]} 23... Rb6 {[%clk
0:00:05.4]} 24. gxf5 {[%clk 0:00:53.4]} 24... Qxf6 {[%clk 0:00:05.3]} 25. fxg6+
{[%clk 0:00:51.9]} 25... fxg6 {[%clk 0:00:06.2]} 26. Rd7+ {[%clk 0:00:48.8]}
26... Rf7 {[%clk 0:00:06]} 27. Rxf7+ {[%clk 0:00:46.2]} 27... Qxf7 {[%clk
0:00:06.4]} 28. Qxc5 {[%clk 0:00:45.7]} 28... Rf6 {[%clk 0:00:06.1]} 29. Rd1
{[%clk 0:00:35.1]} 29... Rxf2 {[%clk 0:00:05.1]} 30. Bxb5 {[%clk 0:00:35.1]}
30... Qf4+ {[%clk 0:00:04.8]} 31. Kb1 {[%clk 0:00:33.2]} 31... Rd2 {[%clk
0:00:05.1]} 32. Qe7+ {[%clk 0:00:30.9]} 32... Kh8 {[%clk 0:00:05.5]} 33. Rc1
{[%clk 0:00:17.4]} 33... e3 {[%clk 0:00:04.6]} 34. a4 {[%clk 0:00:16.6]} 34...
Qf3 {[%clk 0:00:02.4]} 35. Bd3 {[%clk 0:00:15.2]} 35... Rd1 {[%clk 0:00:01.7]}
36. Rxd1 {[%clk 0:00:14]} 36... Qxd1+ {[%clk 0:00:01.6]} 37. Ka2 {[%clk
0:00:14.9]} 37... Qd2 {[%clk 0:00:02.1]} 38. Bxg6 {[%clk 0:00:14]} 38... Kg8
{[%clk 0:00:02.7]} 39. Qf7+ {[%clk 0:00:13.8]} 1-0

[Event "*** SCC Grand Prix: Titled Tuesday Blitz"]
[Site "Chess.com"]
[Date "2020.06.09"]
[Round "5"]
[White "abhidabhi"]
[Black "Benjoneliere44"]
[Result "1-0"]
[WhiteElo "2730"]
[BlackElo "2485"]
[TimeControl "180+1"]
[EndTime "9:56:49 PDT"]
[Termination "abhidabhi won by resignation"]

1. e4 {[%clk 0:03:00.9]} 1... c5 {[%clk 0:02:52.8]} 2. Nc3 {[%clk 0:02:58.7]}
2... Nc6 {[%clk 0:02:50.6]} 3. Bb5 {[%clk 0:02:57.8]} 3... Nd4 {[%clk
0:02:50.6]} 4. Nf3 {[%clk 0:02:58.4]} 4... g6 {[%clk 0:02:50]} 5. Ba4 {[%clk
0:02:48.3]} 5... Bg7 {[%clk 0:02:26.4]} 6. O-O {[%clk 0:02:48.1]} 6... e6 {[%clk
0:02:13.1]} 7. Nxd4 {[%clk 0:02:33.4]} 7... cxd4 {[%clk 0:01:51.5]} 8. Ne2
{[%clk 0:02:33.3]} 8... Ne7 {[%clk 0:01:44.6]} 9. d3 {[%clk 0:02:33]} 9... O-O
{[%clk 0:01:43.2]} 10. Bf4 {[%clk 0:02:26.7]} 10... e5 {[%clk 0:01:39.4]} 11.
Bg5 {[%clk 0:02:23.4]} 11... f6 {[%clk 0:01:39.1]} 12. Bd2 {[%clk 0:02:20.8]}
12... d5 {[%clk 0:01:39.2]} 13. exd5 {[%clk 0:02:20.6]} 13... Nxd5 {[%clk
0:01:39.5]} 14. c3 {[%clk 0:02:14.4]} 14... dxc3 {[%clk 0:01:37.2]} 15. bxc3
{[%clk 0:02:13.7]} 15... Kh8 {[%clk 0:01:33.7]} 16. d4 {[%clk 0:02:11.6]} 16...
f5 {[%clk 0:01:17.8]} 17. dxe5 {[%clk 0:02:04.3]} 17... Bxe5 {[%clk 0:01:18.7]}
18. Bb3 {[%clk 0:02:01.4]} 18... Nb6 {[%clk 0:01:13.2]} 19. Qc2 {[%clk
0:01:50.7]} 19... f4 {[%clk 0:01:12.4]} 20. f3 {[%clk 0:01:46.3]} 20... Bf5
{[%clk 0:01:11.6]} 21. Qc1 {[%clk 0:01:44.5]} 21... Bd3 {[%clk 0:01:11.3]} 22.
Re1 {[%clk 0:01:43.2]} 22... Qd6 {[%clk 0:01:06.4]} 23. Nd4 {[%clk 0:01:22.9]}
23... Nc4 {[%clk 0:00:59.6]} 24. Bxc4 {[%clk 0:01:16.5]} 24... Bxc4 {[%clk
0:00:58.6]} 25. a4 {[%clk 0:01:15.3]} 25... g5 {[%clk 0:00:46.9]} 26. Qb2 {[%clk
0:01:13.6]} 26... b6 {[%clk 0:00:44]} 27. a5 {[%clk 0:01:07.9]} 27... b5 {[%clk
0:00:38]} 28. Nxb5 {[%clk 0:01:01.6]} 28... Qc5+ {[%clk 0:00:29.4]} 29. Nd4
{[%clk 0:01:01.6]} 29... g4 {[%clk 0:00:26.5]} 30. Qa3 {[%clk 0:00:47.9]} 30...
Qxa3 {[%clk 0:00:20.4]} 31. Rxa3 {[%clk 0:00:47.8]} 31... Bxd4+ {[%clk
0:00:20.2]} 32. cxd4 {[%clk 0:00:47.5]} 32... gxf3 {[%clk 0:00:20.9]} 33. Rxf3
{[%clk 0:00:46.8]} 33... Rfe8 {[%clk 0:00:19.2]} 34. Rxf4 {[%clk 0:00:44.6]}
34... Rxe1+ {[%clk 0:00:18.6]} 35. Bxe1 {[%clk 0:00:45.1]} 35... Re8 {[%clk
0:00:19.1]} 36. Bb4 {[%clk 0:00:42.6]} 36... Re2 {[%clk 0:00:17.6]} 37. h4
{[%clk 0:00:41.7]} 37... Kg7 {[%clk 0:00:17.2]} 38. h5 {[%clk 0:00:37.6]} 38...
Kh6 {[%clk 0:00:17.1]} 39. Rf5 {[%clk 0:00:36.8]} 39... Kg7 {[%clk 0:00:15.4]}
40. Bf8+ {[%clk 0:00:36.7]} 40... Kg8 {[%clk 0:00:15.2]} 41. Bh6 {[%clk
0:00:37.1]} 41... Bf7 {[%clk 0:00:15.3]} 42. g4 {[%clk 0:00:35.1]} 42... Re4
{[%clk 0:00:15.1]} 43. d5 {[%clk 0:00:32.8]} 43... Rxg4+ {[%clk 0:00:14.8]} 44.
Kf2 {[%clk 0:00:32.4]} 1-0

[Event "*** SCC Grand Prix: Titled Tuesday Blitz"]
[Site "Chess.com"]
[Date "2020.06.09"]
[Round "5"]
[White "Matibar"]
[Black "Natalya_Buksa"]
[Result "0-1"]
[WhiteElo "2711"]
[BlackElo "2577"]
[TimeControl "180+1"]
[EndTime "9:56:49 PDT"]
[Termination "Natalya_Buksa won on time"]

1. e4 {[%clk 0:03:00.2]} 1... c5 {[%clk 0:02:59.1]} 2. Ne2 {[%clk 0:02:59.3]}
2... Nc6 {[%clk 0:02:59.3]} 3. g3 {[%clk 0:02:58.9]} 3... g6 {[%clk 0:02:59.2]}
4. Bg2 {[%clk 0:02:58.7]} 4... Bg7 {[%clk 0:02:58.7]} 5. c3 {[%clk 0:02:59]}
5... e5 {[%clk 0:02:55.6]} 6. d3 {[%clk 0:02:58.4]} 6... Nge7 {[%clk 0:02:55]}
7. Be3 {[%clk 0:02:58.4]} 7... d6 {[%clk 0:02:55]} 8. Nd2 {[%clk 0:02:58.3]}
8... O-O {[%clk 0:02:55]} 9. f4 {[%clk 0:02:58.4]} 9... b6 {[%clk 0:02:39]} 10.
Nf3 {[%clk 0:02:56.8]} 10... Bg4 {[%clk 0:02:11.3]} 11. h3 {[%clk 0:02:28.2]}
11... Bd7 {[%clk 0:02:10]} 12. O-O {[%clk 0:02:26.6]} 12... f5 {[%clk
0:02:08.8]} 13. Qb3+ {[%clk 0:01:47.8]} 13... Kh8 {[%clk 0:02:06.4]} 14. Rad1
{[%clk 0:01:46.5]} 14... h6 {[%clk 0:01:59.2]} 15. Qc2 {[%clk 0:01:14.8]} 15...
Qc8 {[%clk 0:01:57.9]} 16. Kh2 {[%clk 0:01:14.2]} 16... Rb8 {[%clk 0:01:47]} 17.
Qd2 {[%clk 0:01:11.9]} 17... Kh7 {[%clk 0:01:44.8]} 18. Bf2 {[%clk 0:01:00.7]}
18... Qc7 {[%clk 0:01:43.6]} 19. exf5 {[%clk 0:01:00.5]} 19... gxf5 {[%clk
0:01:29.6]} 20. Nh4 {[%clk 0:00:59.8]} 20... Ng6 {[%clk 0:01:17.3]} 21. Nxg6
{[%clk 0:00:59.5]} 21... Kxg6 {[%clk 0:01:18.2]} 22. fxe5 {[%clk 0:00:52.8]}
22... dxe5 {[%clk 0:01:17.6]} 23. d4 {[%clk 0:00:53.2]} 23... cxd4 {[%clk
0:01:09.8]} 24. cxd4 {[%clk 0:00:52.8]} 24... e4 {[%clk 0:01:09.9]} 25. Be3
{[%clk 0:00:47.6]} 25... Rbe8 {[%clk 0:01:01]} 26. Nf4+ {[%clk 0:00:45.1]} 26...
Kh7 {[%clk 0:01:00.6]} 27. Nh5 {[%clk 0:00:39.1]} 27... Qd6 {[%clk 0:00:59.9]}
28. Nxg7 {[%clk 0:00:38.2]} 28... Kxg7 {[%clk 0:01:00.8]} 29. d5 {[%clk
0:00:37.9]} 29... Ne5 {[%clk 0:01:00.3]} 30. Bf4 {[%clk 0:00:35.1]} 30... Kh7
{[%clk 0:01:00.7]} 31. Rc1 {[%clk 0:00:32.8]} 31... Qf6 {[%clk 0:00:50.6]} 32.
Rc7 {[%clk 0:00:32.6]} 32... Rf7 {[%clk 0:00:50]} 33. Rxa7 {[%clk 0:00:19.7]}
33... Nd3 {[%clk 0:00:47.5]} 34. Be3 {[%clk 0:00:19.4]} 34... Qd6 {[%clk
0:00:30.9]} 35. Rf4 {[%clk 0:00:10.5]} 35... Rg7 {[%clk 0:00:29.7]} 36. b3
{[%clk 0:00:05.9]} 36... Reg8 {[%clk 0:00:29.5]} 37. Rxe4 {[%clk 0:00:04.8]}
37... fxe4 {[%clk 0:00:26.2]} 38. Bxe4+ {[%clk 0:00:04.6]} 38... Kh8 {[%clk
0:00:26.7]} 39. Bf2 {[%clk 0:00:02.5]} 39... Nxf2 {[%clk 0:00:26.2]} 40. Qxf2
{[%clk 0:00:03.4]} 40... Rxg3 {[%clk 0:00:25.1]} 41. Qd4+ {[%clk 0:00:03.3]}
41... R3g7+ {[%clk 0:00:25]} 42. Kh1 {[%clk 0:00:03.8]} 42... Qg3 {[%clk
0:00:23.8]} 0-1

[Event "*** SCC Grand Prix: Titled Tuesday Blitz"]
[Site "Chess.com"]
[Date "2020.06.09"]
[Round "5"]
[White "vaishali2001"]
[Black "vanyakuba"]
[Result "0-1"]
[WhiteElo "2617"]
[BlackElo "2455"]
[TimeControl "180+1"]
[EndTime "9:56:49 PDT"]
[Termination "vanyakuba won by resignation"]

1. e4 {[%clk 0:03:00.9]} 1... d5 {[%clk 0:02:57.5]} 2. exd5 {[%clk 0:02:59.2]}
2... Qxd5 {[%clk 0:02:58.4]} 3. Nc3 {[%clk 0:02:59.3]} 3... Qa5 {[%clk
0:02:58.3]} 4. d4 {[%clk 0:02:59.2]} 4... Nf6 {[%clk 0:02:58.7]} 5. Nf3 {[%clk
0:02:59.2]} 5... Bg4 {[%clk 0:02:59.2]} 6. Bc4 {[%clk 0:02:57.5]} 6... Nc6
{[%clk 0:02:58.4]} 7. h3 {[%clk 0:02:37.3]} 7... Bh5 {[%clk 0:02:53.3]} 8. Bd2
{[%clk 0:01:52.5]} 8... O-O-O {[%clk 0:02:43]} 9. g4 {[%clk 0:01:47.3]} 9... Bg6
{[%clk 0:02:34.7]} 10. Nb5 {[%clk 0:01:45.8]} 10... Qb6 {[%clk 0:02:23.6]} 11.
a4 {[%clk 0:01:45.8]} 11... Na5 {[%clk 0:01:54.4]} 12. Qe2 {[%clk 0:01:07.2]}
12... a6 {[%clk 0:01:17.6]} 13. Ne5 {[%clk 0:00:43.9]} 13... Nxc4 {[%clk
0:00:19.8]} 14. Nxc4 {[%clk 0:00:32.6]} 14... Qe6 {[%clk 0:00:19.6]} 15. Ne5
{[%clk 0:00:20.3]} 15... Ne4 {[%clk 0:00:09.4]} 16. Nc3 {[%clk 0:00:07.9]} 16...
Nxd2 {[%clk 0:00:08.8]} 17. Qxd2 {[%clk 0:00:07.7]} 17... f6 {[%clk 0:00:08.4]}
18. O-O-O {[%clk 0:00:04.3]} 18... fxe5 {[%clk 0:00:08.6]} 19. Rhe1 {[%clk
0:00:05.1]} 19... Qb6 {[%clk 0:00:07.4]} 20. d5 {[%clk 0:00:04.7]} 20... e6
{[%clk 0:00:06.8]} 21. Rxe5 {[%clk 0:00:05.5]} 21... Bb4 {[%clk 0:00:06.3]} 22.
Rxe6 {[%clk 0:00:05.2]} 22... Qxe6 {[%clk 0:00:06.5]} 23. dxe6 {[%clk
0:00:05.1]} 23... Rxd2 {[%clk 0:00:07]} 24. Rxd2 {[%clk 0:00:05.7]} 24... Rf8
{[%clk 0:00:05.1]} 25. Re2 {[%clk 0:00:05.2]} 25... Be7 {[%clk 0:00:04.5]} 26.
Nd5 {[%clk 0:00:05.3]} 26... Kd8 {[%clk 0:00:03.9]} 27. Kb1 {[%clk 0:00:05.1]}
27... c6 {[%clk 0:00:03.9]} 28. Nxe7 {[%clk 0:00:04.4]} 28... Kxe7 {[%clk
0:00:04.8]} 29. Ka2 {[%clk 0:00:03.6]} 29... Rf6 {[%clk 0:00:04.7]} 30. f4
{[%clk 0:00:03.1]} 30... Rxe6 {[%clk 0:00:05]} 31. Rf2 {[%clk 0:00:01.8]} 31...
Bf7 {[%clk 0:00:04.6]} 32. f5 {[%clk 0:00:02.7]} 32... Re2+ {[%clk 0:00:04.2]}
0-1

[Event "*** SCC Grand Prix: Titled Tuesday Blitz"]
[Site "Chess.com"]
[Date "2020.06.09"]
[Round "5"]
[White "Witik"]
[Black "Mikasinski"]
[Result "1-0"]
[WhiteElo "2581"]
[BlackElo "2411"]
[TimeControl "180+1"]
[EndTime "9:56:49 PDT"]
[Termination "Witik won by resignation"]

1. d4 {[%clk 0:03:00.9]} 1... Nf6 {[%clk 0:02:59.4]} 2. c4 {[%clk 0:02:59.4]}
2... g6 {[%clk 0:02:59.4]} 3. Nc3 {[%clk 0:02:59.3]} 3... Bg7 {[%clk 0:02:59.2]}
4. e4 {[%clk 0:02:59]} 4... d6 {[%clk 0:02:59.6]} 5. Nf3 {[%clk 0:02:57.3]} 5...
O-O {[%clk 0:03:00.1]} 6. Be2 {[%clk 0:02:57.8]} 6... e5 {[%clk 0:02:59.8]} 7.
O-O {[%clk 0:02:58]} 7... Nc6 {[%clk 0:03:00]} 8. dxe5 {[%clk 0:02:52.4]} 8...
dxe5 {[%clk 0:02:59.8]} 9. Bg5 {[%clk 0:02:52]} 9... Qxd1 {[%clk 0:02:56.7]} 10.
Rfxd1 {[%clk 0:02:51.9]} 10... Bg4 {[%clk 0:02:50.8]} 11. h3 {[%clk 0:02:51.5]}
11... Bxf3 {[%clk 0:02:50.6]} 12. Bxf3 {[%clk 0:02:52.4]} 12... Nd4 {[%clk
0:02:49.8]} 13. Nd5 {[%clk 0:02:49.1]} 13... Nxd5 {[%clk 0:02:46.3]} 14. cxd5
{[%clk 0:02:50]} 14... Nxf3+ {[%clk 0:02:44.1]} 15. gxf3 {[%clk 0:02:49.6]}
15... f5 {[%clk 0:02:44.5]} 16. Rac1 {[%clk 0:02:43.7]} 16... Rf7 {[%clk
0:02:43.8]} 17. Be3 {[%clk 0:02:30.3]} 17... Bf8 {[%clk 0:02:39.6]} 18. Rc4
{[%clk 0:02:28.8]} 18... Bd6 {[%clk 0:02:37.5]} 19. Rdc1 {[%clk 0:02:27.3]}
19... b6 {[%clk 0:02:33.3]} 20. a4 {[%clk 0:02:23.3]} 20... a5 {[%clk
0:01:58.6]} 21. Rc6 {[%clk 0:02:13.2]} 21... Rd7 {[%clk 0:01:44.2]} 22. Kg2
{[%clk 0:02:03.8]} 22... Kf7 {[%clk 0:01:32.2]} 23. R1c4 {[%clk 0:02:01.4]}
23... Rg8 {[%clk 0:01:28]} 24. Kf1 {[%clk 0:01:27]} 24... f4 {[%clk 0:00:57.2]}
25. Bd2 {[%clk 0:01:24.2]} 25... Ra8 {[%clk 0:00:30.6]} 26. Bc3 {[%clk
0:01:14.7]} 26... h5 {[%clk 0:00:26.8]} 27. Ke2 {[%clk 0:01:03.3]} 27... g5
{[%clk 0:00:25.7]} 28. b3 {[%clk 0:00:59.5]} 28... Ke7 {[%clk 0:00:18.8]} 29.
Bxe5 {[%clk 0:00:58.3]} 29... Rb8 {[%clk 0:00:04]} 30. Bc3 {[%clk 0:00:35.5]}
30... b5 {[%clk 0:00:03.4]} 31. axb5 {[%clk 0:00:35]} 31... Rxb5 {[%clk
0:00:04.3]} 32. e5 {[%clk 0:00:35.2]} 32... Ba3 {[%clk 0:00:02.7]} 33. Rxc7
{[%clk 0:00:20.3]} 33... Rxd5 {[%clk 0:00:01.8]} 34. R7c6 {[%clk 0:00:11.6]}
34... Rd2+ {[%clk 0:00:01.1]} 35. Bxd2 {[%clk 0:00:11.3]} 1-0

[Event "*** SCC Grand Prix: Titled Tuesday Blitz"]
[Site "Chess.com"]
[Date "2020.06.09"]
[Round "5"]
[White "Gordima"]
[Black "TERMINATOR_PC"]
[Result "1-0"]
[WhiteElo "2730"]
[BlackElo "2488"]
[TimeControl "180+1"]
[EndTime "9:56:51 PDT"]
[Termination "Gordima won by resignation"]

1. d4 {[%clk 0:03:00.9]} 1... Nf6 {[%clk 0:02:59.6]} 2. c4 {[%clk 0:03:01.3]}
2... g6 {[%clk 0:02:59.3]} 3. Nc3 {[%clk 0:03:01.6]} 3... Bg7 {[%clk 0:02:59.4]}
4. e4 {[%clk 0:03:01.8]} 4... d6 {[%clk 0:02:59.9]} 5. h3 {[%clk 0:03:02.1]}
5... O-O {[%clk 0:02:59.7]} 6. Nf3 {[%clk 0:03:02.5]} 6... Na6 {[%clk
0:02:59.5]} 7. Be3 {[%clk 0:03:01.6]} 7... e5 {[%clk 0:02:58]} 8. d5 {[%clk
0:03:01.6]} 8... Nc5 {[%clk 0:02:58.3]} 9. Nd2 {[%clk 0:03:01.3]} 9... a5 {[%clk
0:02:58.6]} 10. g4 {[%clk 0:03:00.1]} 10... Ne8 {[%clk 0:02:30.6]} 11. h4 {[%clk
0:02:59.4]} 11... f5 {[%clk 0:02:21.1]} 12. g5 {[%clk 0:02:59.5]} 12... b6
{[%clk 0:02:08.6]} 13. h5 {[%clk 0:02:48.5]} 13... f4 {[%clk 0:01:57.5]} 14.
Bxc5 {[%clk 0:02:47.9]} 14... bxc5 {[%clk 0:01:58.4]} 15. h6 {[%clk 0:02:48.5]}
15... Bh8 {[%clk 0:01:58.9]} 16. Nf3 {[%clk 0:02:33.3]} 16... Rb8 {[%clk
0:01:54.5]} 17. b3 {[%clk 0:02:29.6]} 17... Bd7 {[%clk 0:01:25]} 18. Bh3 {[%clk
0:02:29.1]} 18... Rf7 {[%clk 0:01:15.3]} 19. Qe2 {[%clk 0:02:21.4]} 19... c6
{[%clk 0:01:05.9]} 20. Bxd7 {[%clk 0:02:12.3]} 20... Qxd7 {[%clk 0:01:05.2]} 21.
dxc6 {[%clk 0:02:12.1]} 21... Qxc6 {[%clk 0:01:04.7]} 22. Nd5 {[%clk 0:02:12.3]}
22... a4 {[%clk 0:01:01.8]} 23. Qc2 {[%clk 0:02:00.2]} 23... Nc7 {[%clk
0:00:58.9]} 24. Nxc7 {[%clk 0:01:59.3]} 24... Qxc7 {[%clk 0:00:58.6]} 25. Ke2
{[%clk 0:01:54.9]} 25... Qa5 {[%clk 0:00:51.4]} 26. bxa4 {[%clk 0:01:34.8]}
26... Rfb7 {[%clk 0:00:48.6]} 27. Rhb1 {[%clk 0:01:33.8]} 27... Rb4 {[%clk
0:00:46.6]} 28. Rxb4 {[%clk 0:01:16.6]} 28... Rxb4 {[%clk 0:00:28.1]} 29. Rb1
{[%clk 0:01:12.5]} 29... Rxa4 {[%clk 0:00:26.1]} 30. Rb8+ {[%clk 0:01:02.2]}
30... Kf7 {[%clk 0:00:26.1]} 31. Qb3 {[%clk 0:01:02.2]} 31... Rb4 {[%clk
0:00:19.6]} 32. Rxb4 {[%clk 0:01:01.6]} 32... cxb4 {[%clk 0:00:17.8]} 33. c5+
{[%clk 0:00:50.2]} 33... Ke7 {[%clk 0:00:18.3]} 34. cxd6+ {[%clk 0:00:48.1]}
34... Kxd6 {[%clk 0:00:18.9]} 35. Nd2 {[%clk 0:00:41.9]} 35... Qb5+ {[%clk
0:00:16.2]} 36. Qc4 {[%clk 0:00:39.5]} 36... Qxc4+ {[%clk 0:00:15.3]} 37. Nxc4+
{[%clk 0:00:39.2]} 37... Kc5 {[%clk 0:00:16.2]} 38. Kd3 {[%clk 0:00:36.9]} 38...
Kb5 {[%clk 0:00:14.6]} 39. Nd6+ {[%clk 0:00:29.8]} 39... Ka4 {[%clk 0:00:14.5]}
40. Kc2 {[%clk 0:00:29.2]} 40... Ka3 {[%clk 0:00:14.4]} 41. Kb1 {[%clk
0:00:29.3]} 41... b3 {[%clk 0:00:14.9]} 42. Nf7 {[%clk 0:00:17.8]} 42... bxa2+
{[%clk 0:00:14.6]} 43. Ka1 {[%clk 0:00:18.4]} 43... Kb3 {[%clk 0:00:15.1]} 44.
Nxh8 {[%clk 0:00:19]} 44... Kc4 {[%clk 0:00:13.7]} 45. Nxg6 {[%clk 0:00:19.1]}
45... Kd4 {[%clk 0:00:14.2]} 46. Nh4 {[%clk 0:00:15.6]} 46... Kxe4 {[%clk
0:00:13.8]} 47. g6 {[%clk 0:00:16]} 1-0